Cogmind - Beta 16 @@@ ROGUE MODE // 2025.12.31 @ 17:48:41 Player: Compilatron Result: Destroyed by D-53 Grenadier with Mini Grenade Launcher Performance ------------- Evolutions (0) 0 Regions Visited (2) 400 Robots Destroyed (14) 70 Value Destroyed (402) 402 Prototype IDs (0) 0 Alien Tech Used (0) 0 Bonus (0) 0 TOTAL SCORE: 872 Bonus ------- None Cogmind --------- Core Integrity 0/250 Matter 222/300 Energy 100/100 System Corruption 2% Temperature Cool (0) Movement Walking (260) Ox2 Location -10/Mines Parts ------- > --- POWER (1) -------- (None) > --- PROPULSION (2) --- Aluminum Leg > --- UTILITY (2) ------ Large Storage Unit > --- WEAPON (2) ------- Light Assault Rifle > --- INVENTORY (15) --- Light Treads Light Treads Aluminum Leg Aluminum Leg Wheel Compact Wheel High-capacity Battery (250) High-capacity Matter Pod (200) Small Laser Light Assault Rifle Grenade Launcher Mining Laser Mining Laser Peak State ------------ > --- POWER ------------ Ion Engine > --- PROPULSION ------- Aluminum Leg Aluminum Leg > --- UTILITY ---------- High-capacity Storage Unit Structural Scanner > --- WEAPON ----------- Assault Rifle Light Assault Rifle > --- INVENTORY -------- Ion Engine Light Treads Light Treads Wheel High-capacity Matter Pod Light Armor Plating Light Assault Rifle Grenade Launcher Grenade Launcher Mining Laser [Rating: 8] Favorites ----------- Power Ion Engine Engine Ion Engine Propulsion Aluminum Leg Leg Aluminum Leg Utility Large Storage Unit Device Structural Scanner Storage Large Storage Unit Protection Light Armor Plating Weapon Light Assault Rifle Ballistic Gun Light Assault Rifle Launcher Grenade Launcher Build | -11 -10 -10 ------- Run | Yrd Mat Min Slots Evolved . | . . . Power . | . . . Propulsion . | . . . Utility . | . . . Weapon . | . . . Parts Attached 11 | . 10 1 Power 1 | . 1 . Engine 1 | . 1 . Core . | . . . Reactor . | . . . Propulsion 4 | . 4 . Treads . | . . . Leg 4 | . 4 . Wheel . | . . . Hover . | . . . Flight . | . . . Utility 4 | . 4 . Device 1 | . 1 . Storage 2 | . 2 . Processor . | . . . Hackware . | . . . Protection 1 | . 1 . Artifact . | . . . Weapon 2 | . 1 1 Energy Gun . | . . . Energy Cannon . | . . . Ballistic Gun 1 | . 1 . Ballistic Cannon . | . . . Launcher 1 | . . 1 Special Weapon . | . . . Impact Weapon . | . . . Slashing Weapon . | . . . Piercing Weapon . | . . . Special Melee Weapon . | . . . Unidentified Prototypes . | . . . Parts Lost 9 | . 4 5 Power 2 | . 1 1 Propulsion 3 | . 1 2 Utility 2 | . 1 1 Weapon 2 | . 1 1 Highest Loss Streak 4 | . 2 4 To Critical Strikes . | . . . Average Backups 11 | 6 11 13 Power . | 1 . . Propulsion 5 | 4 5 6 Utility 1 | . 1 2 Weapon 3 | 1 3 5 Tool/Special . | . . . Unused Backups 16 | . 6 10 Power 1 | . 1 . Propulsion 6 | . 1 5 Utility 4 | . 2 2 Weapon 5 | . 2 3 Tool/Special . | . . . Average Slot Usage (%) 95 | . 98 67 Engine 12 | . 12 4 Leg 27 | . 27 26 Device 6 | . 6 . Storage 14 | . 14 14 Protection 6 | . 7 3 Ballistic Gun 26 | . 27 15 Peak Build Rating 8 | 6 8 8 Average Rating 7 | 6 7 5 On Entrance 6 | 6 6 8 Avg Prop Armor Cover (%) . | . . . Naked Turns . | . . . Heaviest Build 49 | 13 49 30 Greatest Support 20 | 20 20 20 Greatest Overweight (x) 4 | . 4 1 Average Overweight (x) 1 | . 1 1 Largest Inventory Capacity 20 | 8 20 15 Average Capacity 15 | 8 15 15 Most Carried 14 | 6 14 14 Average Carried 11 | 6 11 13 Final Capacity 15 | 8 15 15 Final Carried 14 | 6 14 13 Class Distribution -------------------- 100% | Mutant Dominant Class ---------------- Mutant | -10/Materials Mutant | -10/Mines Resources | -11 -10 -10 ----------- Run | Yrd Mat Min Matter Collected 692 | 200 471 21 Remotely . | . . . Salvage Created 605 | . 558 47 Parts 24 | . 24 . Haulers Intercepted . | . . . Recyclers Shooed 1 | . 1 . Parts Field Recycled . | . . . Retrieved Matter . | . . . Parts Self-Destructed . | . . . Prevented . | . . . Parts Restored . | . . . Kills | -11 -10 -10 ------- Run | Yrd Mat Min Combat Hostiles Destroyed 27 | . 13 14 Guns 17 | . 13 4 AOE 10 | . . 10 Classes Destroyed 4 | . 3 1 Recycler 1 | . 1 . Swarmer 3 | . 3 . Grunt 10 | . 10 . Assembled 14 | . . 14 Best Kill Streak 14 | . 3 14 Combat Bots Only 14 | . 3 14 Max Kills in Single Turn 4 | . 2 4 Gunslinging 1 | . 1 . Exploded 4 | . . 4 Melee . | . . . Uniques/NPCs Destroyed . | . . . Combat | -11 -10 -10 -------- Run | Yrd Mat Min Hostile Shots Fired 136 | . 78 58 Missed 37 | . 20 17 Hits 99 | . 58 41 Melee 1 | . . 1 Projectile 98 | . 58 40 AOE 3 | . . 3 Critical Strikes 2 | . 1 1 Part Disruptions 1 | . . 1 Damage Taken 1341 | . 662 679 Core 252 | . 105 147 Absorbed by Shields . | . . . Core Remaining (%) 100 | 100 . . Volleys Fired 76 | . 54 22 Largest 2 | . 2 2 Hottest 50 | . 40 50 Shots Fired 134 | . 105 29 Gun 127 | . 105 22 Cannon . | . . . Launcher 7 | . . 7 Special . | . . . Kinetic 127 | . 105 22 Thermal . | . . . Explosive 7 | . . 7 Electromagnetic . | . . . Robot Hit Streak 16 | . 16 6 Robot Miss Streak 4 | . 4 3 Penetration Max . | . . . Secondary Targets 2 | . 2 . Max Gunslinging Chain 1 | . 1 . Shots Hit Robots 90 | . 72 18 Core Hits 68 | . 29 39 Critical Kills . | . . . Critical Parts Destroyed . | . . . Critical Strikes . | . . . Melee Attacks . | . . . Impact . | . . . Slashing . | . . . Piercing . | . . . Sneak Attacks . | . . . Combat Hostiles . | . . . Follow-up Attacks . | . . . Damage Inflicted 1576 | . 751 825 Guns 895 | . 751 144 Cannons . | . . . Explosions 681 | . . 681 Melee . | . . . Ramming . | . . . Kinetic 895 | . 751 144 Thermal . | . . . Explosive 681 | . . 681 Electromagnetic . | . . . Impact . | . . . Slashing . | . . . Piercing . | . . . Highest Corruption 2 | . . 2 Average Corruption 2 | . . 2 Corruption Purged . | . . . Corruption Blocked . | . . . Overload Shots . | . . . Overflow Damage 5 | . . 5 Projectiles . | . . . Explosions 5 | . . 5 Melee . | . . . Knockbacks . | . . . Impact . | . . . Kinetic . | . . . Secondary . | . . . Self-Inflicted Damage 61 | . . 61 Shots 3 | . . 3 Rammed . | . . . Targets Rammed . | . . . Kicked . | . . . Crushed . | . . . Highest Temperature 60 | . 18 60 Average Temperature 12 | . 6 29 Received Heat Transfer 372 | . 303 69 Siege Activations . | . . . Martial Activations . | . . . Shielding Activations . | . . . Robots Disrupted . | . . . Combat Hostiles . | . . . Robots Corrupted . | . . . Combat Hostiles . | . . . Parts Fried . | . . . Impact Corruptions . | . . . Robots Melted . | . . . Combat Hostiles . | . . . Parts Melted . | . . . Heat Transferred . | . . . Parts Sabotaged . | . . . Parts Stolen . | . . . Parts Stripped . | . . . Power Chain Reactions . | . . . Alert | -11 -10 -10 ------- Run | Yrd Mat Min Maximum Alert Level . | . . . Low Security (%) 100 | 100 100 100 Level 1 . | . . . Level 2 . | . . . Level 3 . | . . . Level 4 . | . . . Level 5 . | . . . High Security . | . . . Max Security . | . . . Peak Influence 100 | . 100 23 Initial . | . . . Average 15 | . 16 2 Influence Increases 365 | . 336 29 Destroy 0b10 Robot/C 260 | . 260 . Destroy 0b10 Robot/NC 5 | . 5 . Destroy Leader 50 | . 50 . Successful Hack 21 | . 21 . Destroy Structure 29 | . . 29 Influence Decreases 365 | . 336 29 Time Decay 296 | . 286 10 Lost Part 59 | . 40 19 Lost Ally 10 | . 10 . Squads Dispatched 3 | . 3 . Investigation 1 | . 1 . Extermination . | . . . Reinforcement 2 | . 2 . Assault . | . . . Garrison . | . . . Intercept . | . . . Searches Triggered . | . . . Construction Impeded . | . . . Haulers Reinforced . | . . . Active Scanning Responses . | . . . Cargo Convoy Interrupts . | . . . Stealth | -11 -10 -10 --------- Run | Yrd Mat Min Distress Signals 3 | . 3 . Communications Jammed . | . . . Distress Signals . | . . . Times Spotted 56 | . 32 24 Peak Tracking Total 20 | . 4 20 Tactical Retreats 1 | . . 1 Traps | -11 -10 -10 ------- Run | Yrd Mat Min Traps Triggered 1 | . 1 . Indirectly . | . . . Trap Hack Attempts . | . . . Triggered . | . . . Disarmed . | . . . Reprogrammed . | . . . Reused . | . . . Traps Extracted . | . . . Installed . | . . . Triggered . | . . . Machines | -11 -10 -10 ---------- Run | Yrd Mat Min Machines Disabled . | . . . Max in Single Turn . | . . . Machines Repaired . | . . . Machines Dismantled . | . . . Machines Sabotaged . | . . . Overloaded Fab Kills . | . . . Hacking | -11 -10 -10 --------- Run | Yrd Mat Min Machines Accessed 5 | . 5 . Terminals 4 | . 4 . Fabricators . | . . . Repair Stations 1 | . 1 . Recycling Units . | . . . Scanalyzers . | . . . Garrison Access . | . . . Total Hacks 11 | . 11 . Successful 9 | . 9 . Failed 2 | . 2 . Catastrophic . | . . . Database Lockouts . | . . . Manual 7 | . 7 . Terminals 10 | . 10 . Fabricators . | . . . Repair Stations 1 | . 1 . Recycling Units . | . . . Scanalyzers . | . . . Garrison Access . | . . . Terminal Hacks 4 | . 4 . Branch Access Points 1 | . 1 . Locate Traps 2 | . 2 . Recall Investigation 1 | . 1 . Fabricator Hacks . | . . . Repair Station Hacks . | . . . Recycling Unit Hacks . | . . . Scanalyzer . | . . . Garrison Access Hacks . | . . . Unauthorized Hacks 5 | . 5 . Terminals 4 | . 4 . Assimilate 1 | . 1 . Botnet 3 | . 3 . Fabricators . | . . . Repair Stations 1 | . 1 . Mechanics 1 | . 1 . Recycling Units . | . . . Scanalyzers . | . . . Garrison Access . | . . . Data Cores Recovered . | . . . Used . | . . . Hacking Detections 5 | . 5 . Full Trace Events . | . . . Feedback Events . | . . . Feedback Blocked . | . . . Robot Schematics Acquired . | . . . Robots Built . | . . . Authchips . | . . . Time . | . . . Total Robot Build Rating . | . . . Part Schematics Acquired . | . . . Parts Built . | . . . Authchips . | . . . Time . | . . . Total Part Build Rating . | . . . Part Studies Acquired . | . . . Parts Repaired . | . . . Time . | . . . Parts Recycled . | . . . Recycled Matter . | . . . Retrieved Matter . | . . . Retrieved Components . | . . . Parts Scanalyzed . | . . . Part Schematics Acquired . | . . . Parts Damaged . | . . . Bothacking | -11 -10 -10 ------------ Run | Yrd Mat Min Used RIF Installer . | . . . Robots Hacked . | . . . Non-combat . | . . . Combat . | . . . Robot Hacks Applied . | . . . Relay Couplers Released . | . . . Fabnet Peak Effective % . | . . . Robots Rewired . | . . . Allies Hacked . | . . . Hacks Repelled . | . . . Allies | -11 -10 -10 -------- Run | Yrd Mat Min Total Allies 1 | . 1 . Largest Group 1 | . 1 . Highest-Rated Group 10 | . 10 . Highest-Rated Ally 10 | . 10 . Total Orders . | . . . Ally Attacks . | . . . Total Damage . | . . . Kills . | . . . Allies Corrupted . | . . . Allies Melted . | . . . Intel | -11 -10 -10 ------- Run | Yrd Mat Min Active Infowar (turns) 770 | . 770 . Structural 770 | . 770 . Robot Analysis Total . | . . . Derelict Logs Recovered . | . . . Drone Launches . | . . . Drone Recoveries . | . . . Exploration | -11 -10 -10 ------------- Run | Yrd Mat Min Turns Passed 1721 | 3 1600 118 Spaces Moved 704 | 3 666 35 Core . | . . . Treads . | . . . Legs 704 | 3 666 35 Wheels . | . . . Hover . | . . . Flight . | . . . Fastest Speed 120 | 120 120 190 Average Speed 194 | 120 195 190 Slowest Speed 400 | 120 400 190 Overloaded Moves . | . . . Propulsion Burnouts . | . . . Robots Hopped . | . . . Potential Cave-ins . | . . . Cave-ins Triggered . | . . . Exploration Rate (%) 39 | 2 98 19 Regions Visited 2 Branch Regions 1 Pre-discovered Areas . | . . . Known Exits Taken 1 | . 1 . Unknown Exits Taken 1 | 1 . . Scrap Searched . | . . . Spaces Dug . | . . . Terrain Destroyed 42 | . . 42 Melee . | . . . Projectile . | . . . AOE 42 | . . 42 Terrain Rammed . | . . . Walls Destroyed . | . . . Machines Disabled . | . . . Actions | -11 -10 -10 --------- Run | Yrd Mat Min Total 933 | 2 871 60 Wait 124 | . 124 . Move 702 | 2 665 35 Hop . | . . . Pick Up 15 | . 15 . Fast Attach . | . . . Attach 6 | . 5 1 Detach . | . . . Swap 7 | . 5 2 Drop 3 | . 3 . Fire 76 | . 54 22 Melee . | . . . Ram . | . . . Kick . | . . . Crush . | . . . Escape Stasis . | . . . Rewire . | . . . Trap . | . . . Miscellaneous . | . . . Route ------- -11/Scrapyard -10/Materials (discovered 5 exits: [*Mat x3] / *Min x2) -10/Mines History --------- Turn | Location | Event 1 | -11/Scrapyard | Discovered new exit (range 1) 4 | -11/Scrapyard | Entered Materials 140 | -10/Materials | Identified exit to Mines 310 | -10/Materials | Build established: Mutant 674 | -10/Materials | Discovered new exit (range 5) 1247 | -10/Materials | Discovered new exit (range 14) 1431 | -10/Materials | Discovered new exit (range 16) 1604 | -10/Materials | Entered Mines 1605 | -10/Mines | Assembled infested the area 1620 | -10/Mines | Core integrity fell below 50% 1639 | -10/Mines | Core integrity fell below 20% 1674 | -10/Mines | Destroyed 14 combat bots 1678 | -10/Mines | Lost 4 parts (1p1n1u1w) 1722 | -10/Mines | Destroyed by D-53 Grenadier with Mini Grenade Launcher Last Messages --------------- 01619_ as-35317 destroyed. 01621_ Lgt. Armor Plating destroyed. 01621_ System corrupted by crushing effect (+2). 01621_ Knocked back. 01622_ Destroyed Asb. Hover Unit. 01622_ as-69420 destroyed. 01625_ as-22123 destroyed. 01626_ Core Extractor disabled. 01627_ as-65571 destroyed. 01632_ Grenade Launcher destroyed. 01635_ The unstable cave ceiling collapses. 01636_ Ion Engine destroyed. 01638_ as-85174 destroyed. 01643_ The unstable cave ceiling collapses. 01647_ Aluminum Leg destroyed. 01653_ as-28887 destroyed. 01658_ The unstable cave ceiling collapses. 01718_ Acquired 21 matter. 01720_ U-05 Engineer builds a Wall. 01722_ Aluminum Leg destroyed. Map ----- +----------------------------------------------------+ | | | | | | | | | | | | | | | | | | | | | ?????????????????????????????????????????????????? | | ???????????????????????????????########??????????? | | ??????????????????????????????## ##?????###?? | | ??????????????????????????????# ##???# ##? | | ??????????????????????????????# #### #? | | ??????????????????????????????# ## #? | | ??????????????????????????????# ### """ #? | | ??????????????????????????????# #?# " " #?? | | ??????????????????????????????# #?# " " ##? | | ??????????????????????????????# #?# #? | | ??????????????????????????????# #?## # | | ????????????????????????###???# #??## # # | | ???????????????????#?#### ###?# #???# #? ## | | ???????????????????# # #?# #???# # #??##? | | ???????????????????# ### #???## # ##????? | | ?????????????????????# @ ## #???# # # ?????? | | ?????????????????????# #???## # #????? | | ?????????????????????# ####???? ## #????? | | ?????????????????????# #??????? # #????? | | ???????????????????? #?????? # #????? | | ??????????????????# #?????? ????? | | ????????????????? ## # #????? ???? | | ????????????????##?? u d ????? ??? | | ??????????????????? g d ??? % ??? | | ?????????????????? g## # # ###?? " ##?? | | ????????????????? #? #? # #??? ##???? | | ????????????????## ?? ??### #???# ### ##????? | | ?????????????????# ??? ????? #????? ?????###?????? | | ????????????????? ??##??????#???????????????????? | | ?????????????????????????????????????????????????? | | ?????????????????????????????????????????????????? | | ?????????????????????????????????????????????????? | | ?????????????????????????????????????????????????? | | ?????????????????????????????????????????????????? | | ?????????????????????????????????????????????????? | | ?????????????????????????????????????????????????? | | ?????????????????????????????????????????????????? | | ?????????????????????????????????????????????????? | | ?????????????????????????????????????????????????? | | ?????????????????????????????????????????????????? | +----------------------------------------------------+ Best States ------------- Heat Dissipation 25 Energy Generation 10 Energy Capacity 250 Matter Stores 300 Matter Capacity 300 Sight Range 16 Terrain Scan Density 10 Armor Coverage 150 Evasion (%) 55 Item Schematics ----------------- None Robot Schematics ------------------ None Fabricated ------------ Nothing Repaired ---------- Nothing Studied --------- None Alien Tech Used ----------------- None Achievements -------------- None Challenges ------------ None Game ------ Seed ForceTeleporterStatue Manual? 0 Play Time 00:09:59 Cumulative 85.6 hours Start 2025.12.31 @ 17:40:10 End 2025.12.31 @ 17:48:41 Sessions 1 Manual Loads 0 Difficulty Rogue Special Mode None Game No. 140 Rogue 116 Adventurer 20 Explorer 4 Win Type - Total 1 Types 0/0/0/1/0/0/0/0/0/0 Lore% 55 Gallery% 45 Achievement% 36 Wizard Run 0 Options --------- Layout 1 ASCII 0 Keyboard 0 Movement Numpad Keybinds 0 Fullscreen 2 Font 24/Smallcaps Map View 50x35 Zoom Use 0% Tactical HUD 1 Map Filters NONE Filters NONE Steam 1 RUN: 61f7c73f-3455-49fa-a022-b933efb17a83